fUST/lending_fUST_20250130
["ID","MTS","AMOUNT","RATE_DAILY","PERIOD"]
[350959118,1738247450675,-2126.3,0.00021369,2]
[350959119,1738247450685,-153.0,0.00021397,2]
[350959120,1738247450694,-153.0,0.00021397,2]
[350959121,1738247450704,-153.0,0.00021397,2]
[350959122,1738247450713,-153.0,0.00021397,2]
[350959123,1738247450723,-153.0,0.00021397,2]
[350959124,1738247450733,-151.0,0.000214,3]
[350959125,1738247450743,-475.49,0.00021419,2]
[350959126,1738247450752,-1000.0,0.00021471,2]
[350959127,1738247450761,-1000.0,0.00021471,2]
[350959128,1738247450771,-151.0,0.000215,4]
[350959129,1738247450780,-1227.277948,0.000215,5]
[350959130,1738247450789,-1138.31,0.00021505,2]
[350959131,1738247450799,-1408.52,0.00021505,2]
[350959132,1738247450808,-656.22,0.00021505,2]
[350959133,1738247450818,-563.76,0.00021505,2]
[350959134,1738247450827,-820.95,0.00021505,2]
[350959135,1738247450836,-500.0,0.00021505,2]
[350959136,1738247450846,-500.0,0.00021505,2]
[350959137,1738247450855,-518.22,0.00021505,2]
[350959138,1738247450867,-606.06,0.00021505,2]
[350959139,1738247450876,-1500.0,0.00021506,2]
[350959140,1738247450885,-500.0,0.00021506,2]
[350959141,1738247450895,-7848.53,0.00021506,2]
[350959142,1738247450904,-955.91,0.00021506,2]
[350959143,1738247450913,-617.08,0.00021506,2]
[350959144,1738247450922,-475.27500606,0.00021506,2]
[350959145,1738247450931,-500.0,0.00021506,2]
[350959146,1738247450940,-500.0,0.00021506,2]
[350959147,1738247450950,-2126.3,0.00021506,2]
[350959148,1738247450960,-509.41458053,0.00021522,2]
[350959149,1738247450968,-605.57614514,0.00021572,6]
[350959150,1738247450978,-7569.50906787,0.00021583,2]
[350959151,1738247450987,-5000.0,0.00021583,2]
[350959152,1738247450997,-5000.0,0.00021583,2]
[350959153,1738247451006,-500.0,0.00021599,2]
[350959154,1738247451015,-500.0,0.00021599,2]
[350959155,1738247451025,-500.0,0.00021599,2]
[350959156,1738247451034,-151.0,0.000216,4]
[350959157,1738247451044,-151.0,0.000216,4]
[350959158,1738247451053,-1000.292927,0.000216,2]
[350959159,1738247451062,-1138.31,0.00021642,2]
[350959160,1738247451074,-1408.52,0.00021642,2]
[350959161,1738247451083,-656.22,0.00021642,2]
[350959162,1738247451092,-563.76,0.00021642,2]
[350959163,1738247451101,-820.95,0.00021642,2]
[350959164,1738247451111,-500.0,0.00021642,2]
[350959165,1738247451124,-500.0,0.00021642,2]
[350959166,1738247451134,-518.22,0.00021642,2]
[350959167,1738247451144,-606.06,0.00021642,2]
[350959168,1738247451153,-1500.0,0.00021643,2]
[350959169,1738247451163,-500.0,0.00021643,2]
[350959170,1738247451172,-7848.53,0.00021643,2]
[350959171,1738247451181,-955.91,0.00021643,2]
[350959172,1738247451191,-617.08,0.00021643,2]
[350959173,1738247451200,-500.0,0.00021643,2]
[350959174,1738247451209,-500.0,0.00021643,2]
[350959175,1738247451218,-2126.3,0.00021643,2]
[350959176,1738247451227,-153.6906943,0.00021671,2]
[350959177,1738247451237,-151.0,0.000217,3]
[350959178,1738247451247,-2020.89,0.00021728,2]
[350959179,1738247451257,-553.40868711,0.00021729,2]
[350959180,1738247451266,-500.0,0.00021736,2]
[350959181,1738247451353,-500.0,0.00021736,2]
[350959182,1738247451366,-151.78738546,0.00021775,6]
[350959183,1738247451376,-206.38415798,0.00021779,2]
[350959184,1738247451385,-1138.31,0.00021779,2]
[350959185,1738247451394,-1408.52,0.00021779,2]
[350959186,1738247451404,-656.22,0.00021779,2]
[350959187,1738247451412,-563.76,0.00021779,2]
[350959188,1738247451421,-820.95,0.00021779,2]
[350959189,1738247451431,-500.0,0.00021779,2]
[350959190,1738247451440,-568.99559792,0.00021779,2]
[350959191,1738247451449,-518.22,0.00021779,2]
[350959192,1738247451459,-606.06,0.00021779,2]
[350959193,1738247451468,-1500.0,0.0002178,2]
[350959194,1738247451478,-500.0,0.0002178,2]
[350959195,1738247451487,-7848.53,0.0002178,2]
[350959196,1738247451496,-955.91,0.0002178,2]
[350959197,1738247451505,-617.08,0.0002178,2]
[350959198,1738247451514,-500.0,0.0002178,2]
[350959199,1738247451524,-500.0,0.0002178,2]
[350959200,1738247451534,-2126.3,0.0002178,2]
[350959201,1738247451544,-151.0,0.000218,3]
[350959202,1738247451553,-151.0,0.000218,4]
[350959203,1738247451562,-2377.47266629,0.0002182,2]
[350959204,1738247451572,-2377.47266629,0.00021859,2]
[350959205,1738247451581,-500.0,0.00021873,2]
[350959206,1738247451591,-631.54762995,0.00021873,2]
[350959207,1738247451600,-2377.47266629,0.00021898,2]
[350959208,1738247451609,-5487.58490683,0.000219,10]
[350959209,1738247451621,-151.0,0.000219,4]
[350959210,1738247451630,-151.0,0.000219,3]
[350959211,1738247451640,-159.56539925,0.000219,2]
[350959212,1738247451649,-1138.31,0.00021916,2]
[350959213,1738247451658,-1408.52,0.00021916,2]
[350959214,1738247451668,-656.22,0.00021916,2]
[350959215,1738247451678,-563.76,0.00021916,2]
[350959216,1738247451687,-820.95,0.00021916,2]
[350959217,1738247451697,-500.0,0.00021916,2]
[350959218,1738247451706,-518.22,0.00021916,2]
[350959219,1738247451716,-606.06,0.00021916,2]
[350959220,1738247451725,-600.0,0.00021917,2]
[350959221,1738247451735,-600.0,0.00021917,2]
[350959222,1738247451744,-600.0,0.00021917,2]
[350959223,1738247451753,-600.0,0.00021917,2]
[350959224,1738247451762,-600.0,0.00021917,2]
[350959225,1738247451771,-600.0,0.00021917,2]
[350959226,1738247451780,-600.0,0.00021917,2]
[350959227,1738247451790,-600.0,0.00021917,2]
[350959228,1738247451800,-600.0,0.00021917,2]
[350959229,1738247451810,-600.0,0.00021917,2]
[350959230,1738247451820,-600.0,0.00021917,2]
[350959231,1738247451830,-600.0,0.00021917,2]
[350959232,1738247451839,-600.0,0.00021917,2]
[350959233,1738247451849,-600.0,0.00021917,2]
[350959234,1738247451859,-600.0,0.00021917,2]
[350959235,1738247451871,-600.0,0.00021917,2]
[350959236,1738247451880,-411.65455381,0.00021917,2]
[350959237,1738247451889,-1500.0,0.00021917,2]
[350959238,1738247451900,-500.0,0.00021917,7]
[350959239,1738247451910,-500.0,0.00021917,7]
[350959240,1738247451920,-500.0,0.00021917,7]
[350959241,1738247451930,-500.0,0.00021917,7]
[350959242,1738247451940,-500.0,0.00021917,7]
[350959243,1738247451950,-500.0,0.00021917,7]
[350959244,1738247451959,-500.0,0.00021917,7]
[350959245,1738247451968,-500.0,0.00021917,7]
[350959246,1738247451977,-500.0,0.00021917,7]
[350959247,1738247451987,-500.0,0.00021917,7]
[350959248,1738247451997,-528.5,0.00021917,7]
[350959249,1738247452007,-500.0,0.00021917,2]
[350959250,1738247452017,-500.0,0.00021917,15]
[350959251,1738247452027,-7848.53,0.00021917,2]
[350959252,1738247452037,-955.91,0.00021917,2]
[350959253,1738247452047,-617.08,0.00021917,2]
[350959254,1738247452057,-500.0,0.00021917,2]
[350959255,1738247452067,-1000.0,0.00021917,2]
[350959256,1738247452078,-1000.0,0.00021917,2]
[350959257,1738247452090,-1000.0,0.00021917,2]
[350959258,1738247452101,-1000.0,0.00021917,2]
[350959259,1738247452111,-1000.0,0.00021917,2]
[350959260,1738247452125,-1000.0,0.00021917,2]
[350959261,1738247452136,-1000.0,0.00021917,2]
[350959262,1738247452146,-1000.0,0.00021917,2]
[350959263,1738247452158,-1000.0,0.00021917,2]
[350959264,1738247452168,-1000.0,0.00021917,2]
[350959265,1738247452179,-1000.0,0.00021917,2]
[350959266,1738247452188,-1000.0,0.00021917,2]
[350959267,1738247452197,-1000.0,0.00021917,2]
[350959268,1738247452207,-1000.0,0.00021917,2]
[350959269,1738247452217,-1000.0,0.00021917,2]
[350959270,1738247452227,-1000.0,0.00021917,2]
[350959271,1738247452237,-1000.0,0.00021917,2]
[350959272,1738247452247,-655.71736865,0.00021917,2]
[350959273,1738247452257,-500.0,0.00021917,2]
[350959274,1738247452267,-2126.3,0.00021917,2]
[350959275,1738247452277,-503.05666677,0.00021917,2]
[350959276,1738247452287,-297.19020163,0.00021918,2]
[350959277,1738247452298,-160.0,0.0002192,7]
[350959278,1738247452307,-1305.435,0.0002192,2]
[350959279,1738247452317,-1305.435,0.0002192,2]
[350959280,1738247452327,-1305.435,0.0002192,2]
[350959281,1738247452338,-1305.435,0.0002192,2]
[350959282,1738247452348,-1305.435,0.0002192,2]
[350959283,1738247452361,-1305.435,0.0002192,2]
[350959284,1738247452377,-1305.435,0.0002192,2]
[350959285,1738247452388,-1305.435,0.0002192,2]
[350959286,1738247452398,-1305.435,0.0002192,2]
[350959287,1738247452412,-1305.435,0.0002192,2]
[350959288,1738247452422,-1305.435,0.0002192,2]
[350959289,1738247452431,-1305.435,0.0002192,2]
[350959290,1738247452440,-1305.435,0.0002192,2]
[350959291,1738247452452,-1305.435,0.0002192,2]
[350959292,1738247452462,-1305.435,0.0002192,2]
[350959293,1738247452473,-1305.435,0.0002192,2]
[350959294,1738247452482,-1305.435,0.0002192,2]
[350959295,1738247452491,-1305.435,0.0002192,2]
[350959296,1738247452500,-1305.435,0.0002192,2]
[350959297,1738247452510,-1305.43,0.0002192,2]
[350959298,1738247452519,-3046.015,0.0002192,2]
[350959299,1738247452529,-3046.015,0.0002192,2]
[350959300,1738247452539,-3046.015,0.0002192,2]
[350959301,1738247452549,-3046.015,0.0002192,2]
[350959302,1738247452558,-3046.015,0.0002192,2]
[350959303,1738247452568,-3046.015,0.0002192,2]
[350959304,1738247452577,-3046.015,0.0002192,2]
[350959305,1738247452588,-3046.015,0.0002192,2]
[350959306,1738247452599,-3046.015,0.0002192,2]
[350959307,1738247452608,-3046.015,0.0002192,2]
[350959308,1738247452621,-3046.015,0.0002192,2]
[350959309,1738247452631,-3046.015,0.0002192,2]
[350959310,1738247452640,-3046.015,0.0002192,2]
[350959311,1738247452650,-3046.015,0.0002192,2]
[350959312,1738247452659,-3046.015,0.0002192,2]
[350959313,1738247452669,-3046.015,0.0002192,2]
[350959314,1738247452679,-3046.015,0.0002192,2]
[350959315,1738247452688,-3046.015,0.0002192,2]
[350959316,1738247452698,-3046.015,0.0002192,2]
[350959317,1738247452708,-3046.01,0.0002192,2]
[350959318,1738247452718,-263.62,0.0002192,2]
[350959319,1738247452728,-153.78361713,0.0002192,2]
[350959320,1738247452737,-153.78361713,0.0002192,2]
[350959321,1738247452746,-153.78361713,0.0002192,2]
[350959322,1738247452755,-153.78,0.0002192,2]
[350959323,1738247452765,-2377.47266629,0.00021937,2]
[350959324,1738247452775,-7814.444029,0.00021962,2]
[350959325,1738247452784,-500.0,0.00021973,2]
[350959326,1738247452794,-154.0,0.00021976,2]
[350959327,1738247452804,-154.0,0.00021976,2]
[350959328,1738247452813,-154.0,0.00021976,2]
[350959329,1738247452823,-154.0,0.00021976,2]
[350959330,1738247452832,-154.0,0.00021976,2]
[350959331,1738247452842,-154.0,0.00021976,2]
[350959332,1738247452852,-154.0,0.00021976,2]
[350959333,1738247452862,-2377.47266629,0.00021976,2]
[350959334,1738247452879,-26799.78983652,0.0002198,3]
[350959335,1738247452888,-22588.85893931,0.00021989,2]
[350959336,1738247452898,-500.0,0.00021999,2]
[350959337,1738247452909,-500.0,0.00021999,2]
[350959338,1738247452919,-500.0,0.00021999,2]
[350959339,1738247452929,-624.11919924,0.00021999,2]
[350959340,1738247452939,-500.0,0.00021999,2]
[350959341,1738247452950,-500.0,0.00021999,2]
[350959342,1738247452960,-500.0,0.00021999,2]
[350959343,1738247452970,-500.0,0.00021999,2]
[350959344,1738247452980,-500.0,0.00021999,2]
[350959345,1738247452989,-500.0,0.00021999,2]
[350959346,1738247452999,-187.0,0.00022,2]
[350959347,1738247453007,-490256.74,0.00022,30]
[350959348,1738247453017,-150.0,0.00022,2]
[350959349,1738247453027,-800.0,0.00022,4]
[350959350,1738247453037,-151.0,0.00022,5]
[350959351,1738247453047,-19348.45550135,0.00022,3]
[350959352,1738247453057,-345.73117386,0.00022,2]
[350959353,1738247453067,-576.19744337,0.00022,2]
[350959354,1738247453080,-31654.21144814,0.00022,2]
[350959355,1738247453090,-1301.03137782,0.00022,7]
[350959356,1738247453100,-48176.0113987,0.00022,7]
[350959357,1738247453111,-162.41854586,0.00022,10]
[350959358,1738247453126,-801.0,0.00022,2]
[350959359,1738247453136,-1000.0,0.00022,2]
[350959360,1738247453147,-500.0,0.0002201,2]
[350959361,1738247453157,-2377.47266629,0.00022015,2]
[350959362,1738247453167,-1138.31,0.00022053,2]
[350959363,1738247453176,-1408.52,0.00022053,2]
[350959364,1738247453186,-656.22,0.00022053,2]
[350959365,1738247453272,-563.76,0.00022053,2]
[350959366,1738247453283,-820.95,0.00022053,2]
[350959367,1738247453292,-500.0,0.00022053,2]
[350959368,1738247453302,-518.22,0.00022053,2]
[350959369,1738247453312,-606.06,0.00022053,2]
[350959370,1738247453321,-1500.0,0.00022054,2]
[350959371,1738247453331,-500.0,0.00022054,2]
[350959372,1738247453341,-7848.53,0.00022054,2]
[350959373,1738247453351,-955.91,0.00022054,2]
[350959374,1738247453360,-617.08,0.00022054,2]
[350959375,1738247453371,-500.0,0.00022054,2]
[350959376,1738247453381,-2377.47266629,0.00022054,2]
[350959377,1738247453391,-500.0,0.00022054,2]
[350959378,1738247453401,-2126.3,0.00022054,2]
[350959379,1738247453411,-2377.47266629,0.00022093,2]
[350959380,1738247453420,-151.0,0.000221,9]
[350959381,1738247453430,-154.69,0.000221,31]
[350959382,1738247453440,-154.69,0.000221,31]
[350959383,1738247453449,-154.69,0.000221,31]
[350959384,1738247453459,-154.69,0.000221,31]
[350959385,1738247453468,-154.69,0.000221,31]
[350959386,1738247453478,-154.69,0.000221,31]
[350959387,1738247453487,-154.69,0.000221,31]
[350959388,1738247453496,-154.69,0.000221,31]
[350959389,1738247453505,-154.69,0.000221,31]
[350959390,1738247453516,-1000.0,0.000221,2]
[350959391,1738247453526,-2130.94417945,0.00022108,2]
[350959392,1738247453535,-1450.813475,0.0002212,5]
[350959393,1738247453544,-2377.47266629,0.00022132,2]
[350959394,1738247453554,-500.0,0.00022136,2]
[350959395,1738247453564,-500.0,0.00022136,2]
[350959396,1738247453574,-500.0,0.00022136,2]
[350959397,1738247453584,-500.0,0.00022136,2]
[350959398,1738247453594,-500.0,0.00022136,2]
[350959399,1738247453603,-160.0,0.00022138,3]
[350959400,1738247453613,-167.6621662,0.00022138,5]
[350959401,1738247453624,-1000.0,0.0002214,5]
[350959402,1738247453634,-500.0,0.00022147,2]
[350959403,1738247453645,-1000.0,0.0002216,5]
[350959404,1738247453655,-553.40868711,0.00022171,2]
[350959405,1738247453665,-2377.47266629,0.00022171,2]
[350959406,1738247453675,-500.0,0.00022173,2]
[350959407,1738247453685,-500.0,0.00022173,2]
[350959408,1738247453695,-500.0,0.00022173,2]
[350959409,1738247453705,-500.0,0.00022173,2]
[350959410,1738247453715,-1000.0,0.0002218,5]
[350959411,1738247453724,-1138.31,0.0002219,2]
[350959412,1738247453734,-1408.52,0.0002219,2]
[350959413,1738247453744,-656.22,0.0002219,2]
[350959414,1738247453754,-563.76,0.0002219,2]
[350959415,1738247453764,-820.95,0.0002219,2]
[350959416,1738247453774,-500.0,0.0002219,2]
[350959417,1738247453784,-518.22,0.0002219,2]
[350959418,1738247453793,-606.06,0.0002219,2]
[350959419,1738247453803,-1500.0,0.00022191,2]
[350959420,1738247453812,-553.45990996,0.00022191,2]
[350959421,1738247453821,-7848.53,0.00022191,2]
[350959422,1738247453830,-955.91,0.00022191,2]
[350959423,1738247453840,-617.08,0.00022191,2]
[350959424,1738247453850,-275.58368372,0.00022191,2]
[350959425,1738247453860,-369.41594321,0.00022191,2]
[350959426,1738247453872,-2126.3,0.00022191,2]
[350959427,1738247453882,-268.0,0.000222,8]
[350959428,1738247453892,-2000.0,0.000222,2]
[350959429,1738247453902,-189.0,0.000222,2]
[350959430,1738247453912,-1000.0,0.000222,5]
[350959431,1738247453922,-150.132568,0.000222,2]
[350959432,1738247453931,-182.915868,0.000222,2]
[350959433,1738247453940,-67721.95153007,0.00022207,2]
[350959434,1738247453950,-151.0,0.00022208,7]
[350959435,1738247453959,-151.0,0.00022208,7]
[350959436,1738247453968,-151.0,0.00022208,7]
[350959437,1738247453977,-151.0,0.00022208,7]
[350959438,1738247453987,-151.0,0.00022208,7]
[350959439,1738247453997,-151.0,0.00022208,7]
[350959440,1738247454007,-151.0,0.00022208,7]
[350959441,1738247454017,-151.0,0.00022208,7]
[350959442,1738247454027,-151.0,0.00022208,7]
[350959443,1738247454036,-151.0,0.00022208,7]
[350959444,1738247454046,-151.0,0.00022208,7]
[350959445,1738247454055,-151.0,0.00022208,7]
[350959446,1738247454065,-151.0,0.00022208,7]
[350959447,1738247454079,-151.0,0.00022208,7]
[350959448,1738247454089,-151.0,0.00022208,7]
[350959449,1738247454098,-218.56689,0.00022208,7]
[350959450,1738247454108,-260.054899,0.00022208,7]
[350959451,1738247454120,-260.054899,0.00022208,7]
[350959452,1738247454130,-260.054899,0.00022208,7]
[350959453,1738247454139,-260.054899,0.00022208,7]
[350959454,1738247454149,-260.054899,0.00022208,7]
[350959455,1738247454160,-260.054899,0.00022208,7]
[350959456,1738247454170,-260.054899,0.00022208,7]
[350959457,1738247454180,-260.054899,0.00022208,7]
[350959458,1738247454190,-260.054899,0.00022208,7]
[350959459,1738247454200,-260.054899,0.00022208,7]
[350959460,1738247454210,-260.054899,0.00022208,7]
[350959461,1738247454219,-260.054899,0.00022208,7]
[350959462,1738247454228,-260.054899,0.00022208,7]
[350959463,1738247454238,-260.054899,0.00022208,7]
[350959464,1738247454248,-260.054899,0.00022208,7]
[350959465,1738247454258,-260.054899,0.00022208,7]
[350959466,1738247454268,-260.054899,0.00022208,7]
[350959467,1738247454278,-260.054899,0.00022208,7]
[350959468,1738247454287,-260.054899,0.00022208,7]
[350959469,1738247454297,-260.054897,0.00022208,7]
[350959470,1738247454306,-151.0,0.00022208,7]
[350959471,1738247454316,-151.0,0.00022208,7]
[350959472,1738247454325,-151.0,0.00022208,7]
[350959473,1738247454335,-151.0,0.00022208,7]
[350959474,1738247454344,-151.0,0.00022208,7]
[350959475,1738247454354,-152.194572,0.00022208,7]
[350959476,1738247454364,-151.0,0.00022208,7]
[350959477,1738247454375,-151.0,0.00022208,7]
[350959478,1738247454384,-151.0,0.00022208,7]
[350959479,1738247454393,-267.179234,0.00022208,7]
[350959480,1738247454402,-151.0,0.00022208,7]
[350959481,1738247454412,-151.0,0.00022208,7]
[350959482,1738247454421,-151.0,0.00022208,7]
[350959483,1738247454431,-151.969105,0.00022208,7]
[350959484,1738247454441,-151.0,0.00022208,7]
[350959485,1738247454450,-151.0,0.00022208,7]
[350959486,1738247454459,-151.0,0.00022208,7]
[350959487,1738247454468,-151.0,0.00022208,7]
[350959488,1738247454477,-151.0,0.00022208,7]
[350959489,1738247454486,-152.712604,0.00022208,7]
[350959490,1738247454495,-151.0,0.00022208,7]
[350959491,1738247454503,-151.0,0.00022208,7]
[350959492,1738247454513,-151.0,0.00022208,7]
[350959493,1738247454522,-154.572393,0.00022208,7]
[350959494,1738247454533,-151.0,0.00022208,7]
[350959495,1738247454541,-151.0,0.00022208,7]
[350959496,1738247454551,-151.0,0.00022208,7]
[350959497,1738247454561,-151.0,0.00022208,7]
[350959498,1738247454570,-151.0,0.00022208,7]
[350959499,1738247454579,-151.0,0.00022208,7]
[350959500,1738247454589,-178.976167,0.00022208,7]
[350959501,1738247454598,-151.0,0.00022208,7]
[350959502,1738247454608,-215.284245,0.00022208,7]
[350959503,1738247454619,-151.0,0.00022208,7]
[350959504,1738247454629,-151.0,0.00022208,7]
[350959505,1738247454638,-151.0,0.00022208,7]
[350959506,1738247454647,-151.0,0.00022208,7]
[350959507,1738247454657,-151.0,0.00022208,7]
[350959508,1738247454666,-151.0,0.00022208,7]
[350959509,1738247454676,-151.0,0.00022208,7]
[350959510,1738247454686,-151.0,0.00022208,7]
[350959511,1738247454696,-151.0,0.00022208,7]
[350959512,1738247454705,-151.0,0.00022208,7]
[350959513,1738247454715,-151.0,0.00022208,7]
[350959514,1738247454725,-500.0,0.00022212,14]
[350959515,1738247454735,-150.66622218,0.00022212,14]
[350959516,1738247454744,-150.12,0.00022212,14]
[350959517,1738247454753,-152.24605627,0.00022212,14]
[350959518,1738247454762,-150.9580771,0.00022212,14]
[350959519,1738247454772,-150.12,0.00022212,14]
[350959520,1738247454781,-761.0,0.00022212,3]
[350959521,1738247454791,-500.0,0.00022214,14]
[350959522,1738247454800,-500.0,0.00022214,2]
[350959523,1738247454809,-150.12,0.00022214,14]
[350959524,1738247454819,-500.0,0.00022214,14]
[350959525,1738247454829,-150.12,0.00022214,2]
[350959526,1738247454839,-150.12,0.00022214,14]
[350959527,1738247454849,-150.12,0.00022214,14]
[350959528,1738247454859,-153.0,0.00022219,2]
[350959529,1738247454874,-225.856838,0.00022266,7]
[350959530,1738247454884,-225.856838,0.00022266,7]
[350959531,1738247454894,-180.876821,0.00022266,7]
[350959532,1738247454905,-151.0,0.00022266,7]
[350959533,1738247454914,-173.062826,0.00022266,7]
[350959534,1738247454924,-173.062826,0.00022266,7]
[350959535,1738247455008,-173.062826,0.00022266,7]
[350959536,1738247455018,-173.062826,0.00022266,7]
[350959537,1738247455029,-173.062826,0.00022266,7]
[350959538,1738247455039,-173.062826,0.00022266,7]
[350959539,1738247455049,-173.062826,0.00022266,7]
[350959540,1738247455061,-173.062826,0.00022266,7]
[350959541,1738247455073,-173.062826,0.00022266,7]
[350959542,1738247455090,-173.062826,0.00022266,7]
[350959543,1738247455100,-173.062826,0.00022266,7]
[350959544,1738247455110,-151.0,0.00022266,7]
[350959545,1738247455127,-173.062826,0.00022266,7]
[350959546,1738247455136,-151.0,0.00022266,7]
[350959547,1738247455147,-151.0,0.00022266,7]
[350959548,1738247455158,-151.0,0.00022266,7]
[350959549,1738247455170,-173.062826,0.00022266,7]
[350959550,1738247455180,-151.0,0.00022266,7]
[350959551,1738247455190,-173.062826,0.00022266,7]
[350959552,1738247455200,-173.062826,0.00022266,7]
[350959553,1738247455210,-151.0,0.00022266,7]
[350959554,1738247455220,-173.062826,0.00022266,7]
[350959555,1738247455230,-151.0,0.00022266,7]
[350959556,1738247455242,-173.062826,0.00022266,7]
[350959557,1738247455253,-151.0,0.00022266,7]
[350959558,1738247455263,-151.0,0.00022266,7]
[350959559,1738247455272,-173.062826,0.00022266,7]
[350959560,1738247455281,-151.0,0.00022266,7]
[350959561,1738247455291,-173.062826,0.00022266,7]
[350959562,1738247455300,-151.0,0.00022266,7]
[350959563,1738247455311,-173.062836,0.00022266,7]
[350959564,1738247455320,-198.525503,0.00022266,7]
[350959565,1738247455330,-340.21274,0.00022266,7]
[350959566,1738247455339,-340.21274,0.00022266,7]
[350959567,1738247455349,-340.21274,0.00022266,7]
[350959568,1738247455359,-340.21274,0.00022266,7]
[350959569,1738247455372,-340.21274,0.00022266,7]
[350959570,1738247455382,-340.21274,0.00022266,7]
[350959571,1738247455393,-340.21274,0.00022266,7]
[350959572,1738247455402,-340.21274,0.00022266,7]
[350959573,1738247455413,-340.21274,0.00022266,7]
[350959574,1738247455424,-340.21274,0.00022266,7]
[350959575,1738247455435,-340.21274,0.00022266,7]
[350959576,1738247455445,-340.21274,0.00022266,7]
[350959577,1738247455455,-340.21274,0.00022266,7]
[350959578,1738247455465,-340.21274,0.00022266,7]
[350959579,1738247455475,-340.21274,0.00022266,7]
[350959580,1738247455485,-340.21274,0.00022266,7]
[350959581,1738247455495,-340.21274,0.00022266,7]
[350959582,1738247455505,-340.21274,0.00022266,7]
[350959583,1738247455515,-340.21274,0.00022266,7]
[350959584,1738247455525,-340.212742,0.00022266,7]
[350959585,1738247455535,-151.0,0.00022266,7]
[350959586,1738247455546,-151.0,0.00022266,7]
[350959587,1738247455556,-151.0,0.00022266,7]
[350959588,1738247455566,-151.0,0.00022266,7]
[350959589,1738247455576,-151.0,0.00022266,7]
[350959590,1738247455585,-151.0,0.00022266,7]
[350959591,1738247455595,-151.0,0.00022266,7]
[350959592,1738247455605,-151.0,0.00022266,7]
[350959593,1738247455615,-151.0,0.00022266,7]
[350959594,1738247455627,-151.0,0.00022266,7]
[350959595,1738247455636,-151.0,0.00022266,7]
[350959596,1738247455646,-165.51808,0.00022266,7]
[350959597,1738247455657,-165.51808,0.00022266,7]
[350959598,1738247455666,-165.51808,0.00022266,7]
[350959599,1738247455676,-165.51808,0.00022266,7]
[350959600,1738247455686,-165.51808,0.00022266,7]
[350959601,1738247455696,-165.51808,0.00022266,7]
[350959602,1738247455706,-165.51808,0.00022266,7]
[350959603,1738247455716,-165.51808,0.00022266,7]
[350959604,1738247455725,-165.51808,0.00022266,7]
[350959605,1738247455735,-165.51808,0.00022266,7]
[350959606,1738247455744,-165.51808,0.00022266,7]
[350959607,1738247455753,-165.51808,0.00022266,7]
[350959608,1738247455763,-165.51808,0.00022266,7]
[350959609,1738247455772,-165.51808,0.00022266,7]
[350959610,1738247455782,-165.51808,0.00022266,7]
[350959611,1738247455792,-165.51808,0.00022266,7]
[350959612,1738247455802,-165.51808,0.00022266,7]
[350959613,1738247455819,-165.51808,0.00022266,7]
[350959614,1738247455835,-165.51808,0.00022266,7]
[350959615,1738247455851,-165.518077,0.00022266,7]
[350959616,1738247455863,-25551.74227115,0.00022271,5]
[350959617,1738247455881,-20268.25361042,0.00022271,5]